bitfinex-derivatives/quotes_BTCF0:USTF0_20251009
["timestamp","ask_amount","ask_price","bid_price","bid_amount"]
[1760036094698,0.39012591,120620.0,120610.0,2.41756462]
[1760036094897,0.323,120620.0,120610.0,2.52165852]
[1760036095800,0.322,120620.0,120610.0,2.41756462]
[1760036095996,0.323,120620.0,120610.0,2.41756462]
[1760036096303,0.323,120620.0,120610.0,2.52187912]
[1760036097202,0.00989,120640.0,120630.0,0.03641]
[1760036097407,0.27989,120640.0,120630.0,1.64702773]
[1760036097908,0.27989,120640.0,120630.0,1.64698773]
[1760036098102,0.27989,120640.0,120630.0,1.20995]
[1760036098809,0.31906,120640.0,120630.0,1.20995]
[1760036099006,0.31906,120640.0,120630.0,1.54267323]
[1760036099203,0.32106,120640.0,120630.0,1.54267323]
[1760036099505,0.32006,120640.0,120630.0,1.54267323]
[1760036099707,0.31906,120640.0,120630.0,1.54267323]
[1760036099902,0.31906,120640.0,120630.0,0.42218]
[1760036100108,0.31906,120640.0,120630.0,1.1735]
[1760036100109,0.32106,120640.0,120630.0,1.1735]
[1760036100309,0.32106,120640.0,120630.0,0.42218]
[1760036100310,0.65378323,120640.0,120630.0,0.42218]
[1760036100508,0.65378323,120640.0,120630.0,1.1735]
[1760036100710,0.32106,120640.0,120630.0,1.1735]
[1760036100911,0.65378323,120640.0,120630.0,1.1735]
[1760036101811,0.32106,120640.0,120630.0,1.1735]
[1760036102807,0.28289,120640.0,120630.0,1.21006]
[1760036103107,0.28289,120640.0,120630.0,1.54278323]
[1760036103406,0.32196,120640.0,120630.0,1.20998]
[1760036103612,0.32196,120640.0,120630.0,1.17342]
[1760036104511,0.32196,120640.0,120630.0,0.42218]
[1760036104707,0.03907,120630.0,120620.0,0.3608]
[1760036104902,0.37574,120630.0,120620.0,1.17692]
[1760036105101,0.70846323,120630.0,120620.0,1.17692]
[1760036105506,0.70846323,120630.0,120620.0,0.42568]
[1760036105813,0.70846323,120630.0,120620.0,1.112]
[1760036106011,0.70946323,120630.0,120620.0,1.112]
[1760036106312,0.71146323,120630.0,120620.0,1.112]
[1760036106612,0.71146323,120630.0,120620.0,0.3608]
[1760036106811,0.71146323,120630.0,120620.0,1.112]
[1760036107213,0.10574,120620.0,120610.0,0.68808]
[1760036107512,0.36574,120620.0,120610.0,0.68808]
[1760036107811,0.36574,120620.0,120610.0,1.43928]
[1760036108213,0.69846323,120620.0,120610.0,0.68808]
[1760036108408,0.69846323,120620.0,120610.0,0.6232]
[1760036108610,0.69846323,120620.0,120610.0,1.4787145]
[1760036108811,0.69946323,120620.0,120610.0,1.2163145]
[1760036109715,0.76564137,120620.0,120610.0,1.2163145]
[1760036110212,0.43291814,120620.0,120610.0,0.4651145]
[1760036110416,0.76564137,120620.0,120610.0,1.2163145]
[1760036110617,0.76564137,120620.0,120610.0,0.4651145]
[1760036111016,0.76564137,120620.0,120610.0,1.2163145]
[1760036111314,0.76564137,120620.0,120610.0,0.4651145]
[1760036111515,0.76564137,120620.0,120610.0,1.2163145]
[1760036111818,0.76564137,120620.0,120610.0,0.4651145]
[1760036112213,0.43291814,120620.0,120610.0,0.4651145]
[1760036112415,0.76564137,120620.0,120610.0,0.4651145]
[1760036112619,0.76564137,120620.0,120610.0,1.112]
[1760036115519,0.76564137,120620.0,120610.0,0.3608]
[1760036115720,0.76564137,120620.0,120610.0,1.112]
[1760036118328,0.76564137,120620.0,120610.0,1.11196]
[1760036118926,0.83291814,120620.0,120610.0,1.11196]
[1760036119126,1.16564137,120620.0,120610.0,1.11196]
[1760036119321,0.43291814,120620.0,120610.0,1.11196]
[1760036119526,0.43291814,120620.0,120610.0,1.17684]
[1760036120528,0.43291814,120620.0,120610.0,1.11196]
[1760036120728,0.76564137,120620.0,120610.0,1.11196]
[1760036121428,0.68247587,120620.0,120610.0,1.36151773]
[1760036122830,0.43291814,120620.0,120610.0,1.42639773]
[1760036123735,0.68247587,120620.0,120610.0,1.42639773]
[1760036124235,0.43291814,120620.0,120610.0,1.42639773]
[1760036124432,0.68247587,120620.0,120610.0,1.42639773]
[1760036126231,0.43291814,120620.0,120610.0,1.42639773]
[1760036126633,0.68247587,120620.0,120610.0,1.42639773]
[1760036127130,0.39384814,120620.0,120610.0,1.86295773]
[1760036127340,0.39384814,120620.0,120610.0,2.11251546]
[1760036127536,0.39384814,120620.0,120610.0,1.86295773]
[1760036127736,0.39384814,120620.0,120610.0,1.11179773]
[1760036127937,0.39384814,120620.0,120610.0,1.86295773]
[1760036128434,0.39384814,120620.0,120610.0,1.96727223]
[1760036129028,0.39384814,120620.0,120610.0,1.86295773]
[1760036129237,0.24955773,120640.0,120630.0,0.10144]
[1760036129435,0.81911546,120640.0,120630.0,1.5742]
[1760036129636,0.56955773,120640.0,120630.0,1.5742]
[1760036129836,0.56955773,120640.0,120630.0,1.82375773]
[1760036130535,0.57055773,120640.0,120630.0,1.82375773]
[1760036130736,0.57055773,120640.0,120630.0,1.5742]
[1760036131040,0.31802756,120640.0,120630.0,1.82375773]
[1760036131240,0.56758529,120640.0,120630.0,1.82375773]
[1760036132539,0.56758529,120640.0,120630.0,1.07259773]
[1760036132742,0.31802756,120640.0,120630.0,1.82371773]
[1760036132945,0.31802756,120640.0,120630.0,1.98535821]
[1760036133339,0.31802756,120640.0,120630.0,1.57416]
[1760036133546,0.38489715,120640.0,120630.0,1.91125972]
[1760036135844,0.38489715,120640.0,120630.0,1.16013972]
[1760036136046,0.38489715,120640.0,120630.0,1.91125972]
[1760036137048,0.38489715,120640.0,120630.0,1.91121972]
[1760036137242,0.38489715,120640.0,120630.0,1.16013972]
[1760036137549,0.38489715,120640.0,120630.0,1.91121972]
[1760036138153,0.38489715,120640.0,120630.0,1.16013972]
[1760036138446,0.38489715,120640.0,120630.0,1.91121972]
[1760036138746,0.72199687,120640.0,120630.0,1.91121972]
[1760036140150,0.38489715,120640.0,120630.0,1.91121972]
[1760036140346,0.38489715,120640.0,120630.0,2.24831944]
[1760036140849,0.38489715,120640.0,120630.0,1.49723944]
[1760036141049,0.38489715,120640.0,120630.0,1.89723944]
[1760036141349,0.38489715,120640.0,120630.0,2.75263394]
[1760036142050,0.38389715,120640.0,120630.0,2.64831944]
[1760036142543,0.38389715,120640.0,120630.0,2.24831944]
[1760036144748,0.38389715,120640.0,120630.0,2.24827944]
[1760036145549,0.38389715,120640.0,120630.0,1.57408]
[1760036145750,0.38389715,120640.0,120630.0,2.24827944]
[1760036150449,0.31702756,120640.0,120630.0,2.08441054]
[1760036150651,0.02872294,120660.0,120650.0,0.12055]
[1760036150856,0.3,120660.0,120650.0,1.62066394]
[1760036151055,0.3,120660.0,120650.0,2.37162394]
[1760036151250,0.3,120660.0,120650.0,1.62066394]
[1760036151459,0.3405576,120660.0,120650.0,2.37162394]
[1760036151658,0.3405576,120660.0,120650.0,1.62066394]
[1760036151858,0.3415576,120660.0,120650.0,2.37162394]
[1760036152054,0.3415576,120660.0,120650.0,0.9464645]
[1760036152254,0.3415576,120660.0,120650.0,2.37162394]
[1760036152455,0.3415576,120660.0,120650.0,2.26730944]
[1760036153058,0.3435576,120660.0,120650.0,2.26730944]
[1760036153258,0.3425576,120660.0,120650.0,2.26730944]
[1760036153459,0.3435576,120660.0,120650.0,2.26730944]
[1760036153758,0.3435576,120660.0,120650.0,1.51634944]
[1760036153949,0.3435576,120660.0,120650.0,2.26726944]
[1760036154954,0.3435576,120660.0,120650.0,1.51634944]
[1760036155154,0.3435576,120660.0,120650.0,2.26722944]
[1760036157161,0.3435576,120660.0,120650.0,1.51634944]
[1760036157361,0.3435576,120660.0,120650.0,2.26718944]
[1760036158964,0.3435576,120660.0,120650.0,1.54558944]
[1760036159163,0.3435576,120660.0,120650.0,1.51634944]
[1760036159367,0.3435576,120660.0,120650.0,2.26718944]
[1760036160864,0.3435576,120660.0,120650.0,2.26714944]
[1760036161065,0.3435576,120660.0,120650.0,1.51634944]
[1760036161266,0.3435576,120660.0,120650.0,2.26714944]
[1760036161863,0.3435576,120660.0,120650.0,1.93004972]
[1760036163163,0.3435576,120660.0,120650.0,1.51634944]
[1760036163467,0.3435576,120660.0,120650.0,2.26710944]
[1760036164360,0.303,120660.0,120650.0,2.26710944]
[1760036164566,0.303,120660.0,120650.0,2.74995224]
[1760036164763,0.303,120660.0,120650.0,1.99919224]
[1760036164959,0.303,120660.0,120650.0,3.01235224]
[1760036165664,0.303,120660.0,120650.0,2.26159224]
[1760036165865,0.303,120660.0,120650.0,2.74991224]
[1760036167572,0.005,120670.0,120660.0,0.11658]
[1760036167871,0.275,120670.0,120660.0,1.90229944]
[1760036168569,0.06620486,120680.0,120660.0,1.52174534]
[1760036168771,0.05,120680.0,120670.0,1.90229944]
[1760036169071,0.005,120710.0,120680.0,0.11658]
[1760036169271,0.3154721,120710.0,120700.0,0.45367972]
[1760036169471,0.3154721,120710.0,120700.0,1.20435972]
[1760036170059,0.3154721,120710.0,120700.0,0.45367972]
[1760036170264,0.3154721,120710.0,120700.0,1.20435972]
[1760036170470,0.65557182,120710.0,120700.0,1.20435972]
[1760036170660,0.65557182,120710.0,120700.0,0.45367972]
[1760036170865,0.65557182,120710.0,120700.0,1.20435972]
[1760036171462,0.65757182,120710.0,120700.0,1.20435972]
[1760036171668,0.65757182,120710.0,120700.0,0.86726]
[1760036172069,0.65757182,120710.0,120700.0,0.11658]
[1760036172272,0.65757182,120710.0,120700.0,0.86722]
[1760036172473,0.3204721,120710.0,120700.0,0.86722]
[1760036172679,0.65457182,120710.0,120700.0,0.86722]
[1760036172873,0.72142251,120710.0,120700.0,0.86722]
[1760036173074,0.38432279,120710.0,120700.0,0.86722]
[1760036173274,0.72142251,120710.0,120700.0,1.20431972]
[1760036173676,0.72142251,120710.0,120700.0,1.20427972]
[1760036173876,0.38432279,120710.0,120700.0,1.20427972]
[1760036174672,0.72142251,120710.0,120700.0,1.20427972]
[1760036175475,0.38432279,120710.0,120700.0,1.20427972]
[1760036175976,0.72142251,120710.0,120700.0,1.20427972]
[1760036176480,0.38432279,120710.0,120700.0,1.20427972]
[1760036176680,0.72142251,120710.0,120700.0,0.45367972]
[1760036176981,0.72142251,120710.0,120700.0,1.20423972]
[1760036178079,0.72042251,120710.0,120700.0,1.20423972]
[1760036178278,0.72042251,120710.0,120700.0,0.11658]
[1760036178475,0.72042251,120710.0,120700.0,1.20419972]
[1760036179079,0.38332279,120710.0,120700.0,1.56499972]
[1760036180182,0.276,120710.0,120700.0,2.30209944]
[1760036180384,0.276,120710.0,120700.0,1.96499972]
[1760036180385,0.26284483,120710.0,120700.0,1.96499972]
[1760036183480,0.26284483,120710.0,120700.0,2.04726127]
[1760036183684,0.26284483,120710.0,120700.0,1.63337404]
[1760036183985,0.26284483,120710.0,120700.0,2.38381404]
[1760036184386,0.26284483,120710.0,120700.0,2.46993546]
[1760036184581,0.26284483,120710.0,120700.0,2.09028198]
[1760036185782,0.26284483,120710.0,120700.0,2.09024198]
[1760036185987,0.14963483,120710.0,120700.0,2.46989546]
[1760036186188,0.03642483,120710.0,120700.0,2.46989546]
[1760036186390,0.211,120710.0,120700.0,2.46989546]
[1760036186681,0.005,120730.0,120710.0,0.1259048]
[1760036186886,0.005,120730.0,120720.0,2.35292176]
[1760036187085,0.315,120730.0,120720.0,2.35292176]
[1760036187281,0.315,120730.0,120720.0,2.67012696]
[1760036187881,0.315,120730.0,120720.0,2.67008696]
[1760036188087,0.316,120730.0,120720.0,2.67008696]
[1760036188287,0.35867,120730.0,120720.0,2.67008696]
[1760036189089,0.35867,120730.0,120720.0,1.91972696]
[1760036189283,0.35867,120730.0,120720.0,2.67004696]
[1760036189684,0.316,120730.0,120720.0,2.79363496]
[1760036190094,0.316,120730.0,120720.0,2.04331496]
[1760036190285,0.316,120730.0,120720.0,2.79363496]
[1760036190485,0.316,120730.0,120720.0,2.04331496]
[1760036190685,0.316,120730.0,120720.0,2.79359496]
[1760036191695,0.316,120730.0,120720.0,2.79355496]
[1760036192397,0.316,120730.0,120720.0,4.11187496]
[1760036192602,0.316,120730.0,120720.0,4.86211496]
[1760036192893,0.316,120730.0,120720.0,5.2508354]
[1760036192894,0.09815,120730.0,120720.0,5.2508354]
[1760036193098,0.05088,120750.0,120720.0,6.0010754]
[1760036193291,0.34088,120750.0,120740.0,1.22925026]
[1760036193493,0.34088,120750.0,120740.0,1.97949026]
[1760036194189,0.34088,120750.0,120740.0,1.62925026]
[1760036194396,0.34188,120750.0,120740.0,2.37945026]
[1760036194791,0.34188,120750.0,120740.0,1.62925026]
[1760036194997,0.34188,120750.0,120740.0,2.37945026]
[1760036195495,0.296,120750.0,120740.0,2.37945026]
[1760036195695,0.295,120750.0,120740.0,1.62925026]
[1760036195901,0.296,120750.0,120740.0,2.37941026]
[1760036196197,0.05088,120770.0,120750.0,0.0827734]
[1760036196398,0.33088,120770.0,120760.0,1.84564273]
[1760036196792,0.33088,120770.0,120760.0,3.91384273]
[1760036196998,0.33088,120770.0,120760.0,3.98068559]
[1760036197802,0.285,120770.0,120760.0,4.84310647]
[1760036199395,0.285,120770.0,120760.0,4.84282647]
[1760036199996,0.33088,120770.0,120760.0,4.46309299]
[1760036200301,0.33088,120770.0,120760.0,1.64509299]
[1760036200500,0.33088,120770.0,120760.0,3.31301299]
[1760036200693,0.33088,120770.0,120760.0,4.06301299]
[1760036200893,0.33088,120770.0,120760.0,4.06297299]
[1760036201291,0.33088,120770.0,120760.0,1.24509299]
[1760036201497,0.33088,120770.0,120760.0,3.31293299]
[1760036201801,0.33088,120770.0,120760.0,4.06289299]
[1760036202700,0.33088,120770.0,120760.0,1.24509299]
[1760036203102,0.33088,120770.0,120760.0,4.06281299]
[1760036203599,0.4136406,120770.0,120760.0,4.06281299]
[1760036204003,0.4136406,120770.0,120760.0,4.06269299]
[1760036204498,0.4136406,120770.0,120760.0,3.68303951]
[1760036204703,0.4136406,120770.0,120760.0,4.06269299]
[1760036209200,0.4136406,120770.0,120760.0,3.31277299]
[1760036209503,0.4136406,120770.0,120760.0,4.06261299]
[1760036209701,0.1286337,120780.0,120770.0,0.0827606]
[1760036209900,0.0827537,120780.0,120770.0,1.20286756]
[1760036210104,0.3527537,120780.0,120770.0,1.20286756]
[1760036210302,0.4006537,120780.0,120770.0,0.82321408]
[1760036210504,0.4006537,120780.0,120770.0,1.57305408]
[1760036211607,0.4006537,120780.0,120770.0,1.57301408]
[1760036213202,0.4793437,120780.0,120770.0,3.64037408]
[1760036215615,0.4793437,120780.0,120770.0,1.49021348]
[1760036215810,0.4793437,120780.0,120770.0,0.74045348]
[1760036216010,0.4793437,120780.0,120770.0,0.3608]
[1760036216210,0.8793437,120780.0,120770.0,1.11056]
[1760036217310,0.8793437,120780.0,120770.0,1.57297408]
[1760036218313,0.8793437,120780.0,120770.0,0.4435606]
[1760036218314,0.3179,120780.0,120770.0,0.4435606]
[1760036218616,0.3179,120780.0,120770.0,1.1933206]
[1760036218812,0.3179,120780.0,120770.0,1.57297408]
[1760036222318,0.3179,120780.0,120770.0,1.61391885]
[1760036224217,0.3179,120780.0,120770.0,1.12655885]
[1760036224424,0.3179,120780.0,120770.0,2.25597233]
[1760036224718,0.27,120780.0,120770.0,2.25597233]
[1760036225110,0.27,120780.0,120770.0,1.87631885]
[1760036225316,0.27,120780.0,120770.0,1.95056511]
[1760036225519,0.27,120780.0,120770.0,1.87631885]
[1760036226422,0.27,120780.0,120770.0,1.95081288]
[1760036227522,0.27,120780.0,120770.0,1.87631885]
[1760036227820,0.31514,120780.0,120770.0,1.87631885]
[1760036228725,0.27,120780.0,120770.0,2.49788683]
[1760036229834,0.27,120780.0,120770.0,2.39357233]
[1760036230124,0.27,120780.0,120770.0,2.39457233]
[1760036230317,0.27,120780.0,120770.0,2.49880726]
[1760036231223,0.27,120780.0,120770.0,2.39457233]
[1760036231724,0.27,120780.0,120770.0,2.469013]
[1760036233218,0.08,120780.0,120770.0,2.469013]
[1760036237328,0.05014,120790.0,120770.0,2.469013]
[1760036237532,0.31014,120790.0,120780.0,1.02552234]
[1760036238734,0.31014,120790.0,120780.0,1.77520234]
[1760036238934,0.31014,120790.0,120780.0,1.02552234]
[1760036239134,0.31014,120790.0,120780.0,1.80503669]
[1760036239433,0.3928869,120790.0,120780.0,1.80503669]
[1760036239630,0.3928869,120790.0,120780.0,0.95112176]
[1760036239835,0.3928869,120790.0,120780.0,3.76776176]
[1760036240035,0.3928869,120790.0,120780.0,0.95112176]
[1760036240230,0.4713369,120790.0,120780.0,3.87190924]
[1760036240540,0.4713369,120790.0,120780.0,5.26776176]
[1760036240837,0.3928869,120790.0,120780.0,5.37190247]
[1760036241138,0.3928869,120790.0,120780.0,5.37186247]
[1760036242235,0.3928869,120790.0,120780.0,4.62222247]
[1760036242437,0.31014,120790.0,120780.0,5.37186247]
[1760036242637,0.3928869,120790.0,120780.0,2.55526247]
[1760036242838,0.3928869,120790.0,120780.0,5.37186247]
[1760036243232,0.3928869,120790.0,120780.0,5.26772176]
[1760036243434,0.3928869,120790.0,120780.0,2.45112176]
[1760036243633,0.3928869,120790.0,120780.0,5.26768176]
[1760036243928,0.3928869,120790.0,120780.0,5.37180871]
[1760036244435,0.3928869,120790.0,120780.0,5.26768176]
[1760036244737,0.3928869,120790.0,120780.0,2.45112176]
[1760036245037,0.3928869,120790.0,120780.0,4.99215265]
[1760036245232,0.3928869,120790.0,120780.0,4.90939895]
[1760036245438,0.7928869,120790.0,120780.0,4.05524767]
[1760036245640,0.7928869,120790.0,120780.0,4.88764137]
[1760036246241,0.7928869,120790.0,120780.0,5.18073296]
[1760036247738,0.7928869,120790.0,120780.0,4.43109296]
[1760036247938,0.7928869,120790.0,120780.0,5.18069296]
[1760036248844,0.7928869,120790.0,120780.0,2.46832401]
[1760036249038,0.7928869,120790.0,120780.0,5.28480401]
[1760036250844,0.3928869,120790.0,120780.0,4.52969215]
[1760036251040,0.3928869,120790.0,120780.0,4.11627123]
[1760036251240,0.68217339,120790.0,120780.0,4.76172018]
[1760036251440,0.68217339,120790.0,120780.0,4.84447388]
[1760036251640,0.68217339,120790.0,120780.0,4.91054909]
[1760036251836,0.28217339,120790.0,120780.0,3.82477001]
[1760036252042,0.28217339,120790.0,120780.0,4.99330279]
[1760036253144,0.28217339,120790.0,120780.0,4.84447388]
[1760036253651,0.28217339,120790.0,120780.0,4.76172018]
[1760036253841,0.28217339,120790.0,120780.0,4.01212018]
[1760036254148,0.28217339,120790.0,120780.0,4.84467388]
[1760036256443,1.01835247,120790.0,120780.0,1.94524018]
[1760036256646,1.01835247,120790.0,120780.0,2.69496018]
[1760036256945,1.01835247,120790.0,120780.0,1.6090611]
[1760036257148,1.01835247,120790.0,120780.0,1.75789001]
[1760036257453,1.01835247,120790.0,120780.0,2.61211911]
[1760036257657,1.01835247,120790.0,120780.0,1.11211911]
[1760036257950,1.09802247,120790.0,120780.0,0.8590611]
[1760036258146,1.09802247,120790.0,120780.0,0.1090611]
[1760036258351,0.2082137,120780.0,120770.0,0.4650291]
[1760036258547,0.85439278,120780.0,120770.0,0.4650291]
[1760036258748,1.25439278,120780.0,120770.0,1.11096]
[1760036259150,1.25439278,120780.0,120770.0,1.44713908]
[1760036259350,1.25439278,120780.0,120770.0,1.551345]
[1760036259544,1.25439278,120780.0,120770.0,1.551385]
[1760036259851,1.29579583,120780.0,120770.0,1.551385]
[1760036260246,0.95961675,120780.0,120770.0,1.551385]
[1760036260451,1.29579583,120780.0,120770.0,1.551385]
[1760036260651,1.29579583,120780.0,120770.0,1.21520592]
[1760036260843,1.29579583,120780.0,120770.0,0.46500592]
[1760036261252,1.29579583,120780.0,120770.0,1.21516592]
[1760036261754,0.95961675,120780.0,120770.0,1.21516592]
[1760036261955,1.29579583,120780.0,120770.0,1.21516592]
[1760036262353,0.89579583,120780.0,120770.0,1.551345]
[1760036262553,0.89579583,120780.0,120770.0,1.44713908]
[1760036263353,0.89579583,120780.0,120770.0,1.551345]
[1760036263750,0.12546,120770.0,120760.0,0.88892073]
[1760036263950,0.43546,120770.0,120760.0,0.88892073]
[1760036264149,0.43546,120770.0,120760.0,3.10913828]
[1760036264950,0.43546,120770.0,120760.0,2.27629088]
[1760036264951,0.77163908,120770.0,120760.0,2.27629088]
[1760036265355,0.77163908,120770.0,120760.0,3.09299506]
[1760036266056,0.77163908,120770.0,120760.0,3.17576246]
[1760036266458,0.77163908,120770.0,120760.0,2.35137899]
[1760036266657,0.77163908,120770.0,120760.0,3.10137899]
[1760036266859,0.77163908,120770.0,120760.0,3.01861159]
[1760036267252,0.77163908,120770.0,120760.0,3.09295506]
[1760036267458,0.77163908,120770.0,120760.0,3.09291506]
[1760036268162,0.77163908,120770.0,120760.0,2.75673598]
[1760036268355,0.77163908,120770.0,120760.0,2.00677598]
[1760036268561,0.77163908,120770.0,120760.0,2.75673598]
[1760036268861,1.25439968,120770.0,120760.0,0.4401118]
[1760036269062,1.25439968,120770.0,120760.0,1.1900718]
[1760036269362,1.25439968,120770.0,120760.0,1.9401118]
[1760036269561,1.25439968,120770.0,120760.0,1.52637088]
[1760036271861,1.25439968,120770.0,120760.0,1.52633088]
[1760036273164,1.25439968,120770.0,120760.0,0.77629088]
[1760036273365,1.25439968,120770.0,120760.0,1.52625088]
[1760036273764,1.25439968,120770.0,120760.0,0.77629088]
[1760036273964,1.25439968,120770.0,120760.0,1.52625088]
[1760036274365,1.25439968,120770.0,120760.0,0.77629088]
[1760036274860,1.25439968,120770.0,120760.0,1.52621088]
[1760036275661,1.25439968,120770.0,120760.0,0.77629088]
[1760036275964,1.25439968,120770.0,120760.0,1.52621088]
[1760036277667,1.25439968,120770.0,120760.0,0.77629088]
[1760036277867,1.25439968,120770.0,120760.0,1.52613088]
[1760036278069,1.25439968,120770.0,120760.0,0.77629088]
[1760036279069,1.25439968,120770.0,120760.0,1.52609088]
[1760036279470,1.25439968,120770.0,120760.0,1.45174741]
[1760036279665,1.25439968,120770.0,120760.0,1.45178741]
[1760036280770,1.25439968,120770.0,120760.0,0.70194741]
[1760036281164,0.43546,120770.0,120760.0,1.53455481]
[1760036281559,0.35579,120770.0,120760.0,1.18471481]
[1760036281766,0.35579,120770.0,120760.0,1.93459481]
[1760036281968,0.35579,120770.0,120760.0,1.10194741]
[1760036282170,0.4385506,120770.0,120760.0,1.11564833]
[1760036282472,0.4385506,120770.0,120760.0,1.45182741]
[1760036282669,0.5175106,120770.0,120760.0,0.78471481]
[1760036282966,0.85368968,120770.0,120760.0,1.55619013]
[1760036283466,0.85368968,120770.0,120760.0,0.46985105]
[1760036283670,0.85368968,120770.0,120760.0,1.22009105]
[1760036283867,0.85368968,120770.0,120760.0,1.11600833]
[1760036284068,0.85368968,120770.0,120760.0,0.36576833]
[1760036284270,0.85368968,120770.0,120760.0,1.11600833]
[1760036285478,0.85368968,120770.0,120760.0,1.22017955]
[1760036285870,0.85368968,120770.0,120760.0,1.11600833]
[1760036286779,0.85368968,120770.0,120760.0,0.36576833]
[1760036286976,0.43475,120770.0,120760.0,1.28888603]
[1760036287271,0.35579,120770.0,120760.0,2.03908603]
[1760036287479,0.35579,120770.0,120760.0,1.93531481]
[1760036288572,0.35579,120770.0,120760.0,2.08414372]
[1760036289474,0.35579,120770.0,120760.0,1.93531481]
[1760036291777,0.15347628,120770.0,120760.0,1.62512151]
[1760036292078,0.15347628,120770.0,120760.0,2.37596151]
[1760036292282,0.15347628,120770.0,120760.0,2.27173389]
[1760036293168,0.15347628,120770.0,120760.0,2.42050665]
[1760036296574,0.15347628,120770.0,120760.0,2.27173389]
[1760036297381,0.2080846,120780.0,120770.0,0.0827605]
[1760036297568,0.2080846,120780.0,120770.0,0.77973958]
[1760036297569,0.4191246,120780.0,120770.0,0.77973958]
[1760036297978,0.4191246,120780.0,120770.0,1.11591866]
[1760036298471,0.4191246,120780.0,120770.0,1.37831866]
[1760036298673,0.29,120780.0,120770.0,1.11591866]
[1760036298878,0.29,120780.0,120770.0,2.26635866]
[1760036299380,0.29,120780.0,120770.0,2.41493498]
[1760036300978,0.29,120780.0,120770.0,2.26635866]
[1760036302281,0.4191237,120780.0,120770.0,4.33339866]
[1760036302478,0.4191237,120780.0,120770.0,3.58303866]
[1760036302779,0.4191237,120780.0,120770.0,4.33335866]
[1760036302980,0.4191237,120780.0,120770.0,4.33331866]
[1760036303876,0.4191237,120780.0,120770.0,1.17973958]
[1760036304076,0.4191237,120780.0,120770.0,3.99709958]
[1760036304583,0.4191237,120780.0,120770.0,4.33327866]
[1760036305480,0.4191237,120780.0,120770.0,4.33329316]
[1760036305681,0.4191237,120780.0,120770.0,3.93317316]
[1760036306080,0.4191237,120780.0,120770.0,3.64004001]
[1760036307483,0.4191237,120780.0,120770.0,2.88984001]
[1760036307684,0.4191237,120780.0,120770.0,3.64004001]
[1760036307685,0.33637,120780.0,120770.0,3.64004001]
[1760036308081,0.33637,120780.0,120770.0,3.74401429]
[1760036308285,0.4191237,120780.0,120770.0,3.74401429]
[1760036308484,0.4736235,120780.0,120770.0,3.64004001]
[1760036309084,0.4736235,120780.0,120770.0,3.74402236]
[1760036309984,0.4736235,120780.0,120770.0,3.64004001]
[1760036310185,0.4736235,120780.0,120770.0,3.7440333]
[1760036311086,0.4736235,120780.0,120770.0,2.9938333]
[1760036311378,0.4736235,120780.0,120770.0,3.90228001]
[1760036311585,0.4736235,120780.0,120770.0,3.90220001]
[1760036311974,0.4736235,120780.0,120770.0,3.63980001]
[1760036312178,0.4736235,120780.0,120770.0,0.82280001]
[1760036312380,0.4736235,120780.0,120770.0,3.63976001]
[1760036312685,0.4736235,120780.0,120770.0,3.90216001]
[1760036313281,0.9502035,120780.0,120770.0,2.42776]
[1760036313583,0.79370139,120780.0,120770.0,3.63972011]
[1760036313785,0.9502035,120780.0,120770.0,3.63972011]
[1760036313984,0.9502035,120780.0,120770.0,3.03833643]
[1760036314181,0.9502035,120780.0,120770.0,3.78829643]
[1760036314383,0.9502035,120780.0,120770.0,3.03833643]
[1760036314581,0.9502035,120780.0,120770.0,3.78857643]
[1760036315686,0.9502035,120780.0,120770.0,3.78853643]
[1760036316285,0.9502035,120780.0,120770.0,3.63996011]
[1760036317479,0.9502035,120780.0,120770.0,0.3608]
[1760036317685,0.9502035,120780.0,120770.0,1.11092]
[1760036318087,0.9502035,120780.0,120770.0,1.21506909]
[1760036319190,0.9502035,120780.0,120770.0,0.3608]
[1760036319390,0.9502035,120780.0,120770.0,1.57340011]
[1760036319588,0.9502035,120780.0,120770.0,0.82280011]
[1760036319988,0.9502035,120780.0,120770.0,1.57340011]
[1760036321988,0.9502035,120780.0,120770.0,1.6775492]
[1760036322387,0.5502035,120780.0,120770.0,1.6775492]
[1760036329407,0.4736235,120780.0,120770.0,1.6771892]
[1760036330008,0.4736235,120780.0,120770.0,0.9269492]
[1760036330198,0.3908698,120780.0,120770.0,1.6772292]
[1760036330402,0.3908698,120780.0,120770.0,1.57308011]
[1760036332006,0.3908698,120780.0,120770.0,0.82280011]
[1760036332201,0.3444998,120780.0,120770.0,1.57320011]
[1760036332407,0.1144998,120780.0,120770.0,2.35231962]
[1760036332703,0.1144998,120780.0,120770.0,1.60203962]
[1760036333009,0.0544998,120780.0,120770.0,2.35247962]
[1760036333206,0.04588,120800.0,120790.0,0.0827469]
[1760036333408,0.35588,120800.0,120790.0,1.93418641]
[1760036333910,0.35588,120800.0,120790.0,1.219004]
[1760036334109,0.35588,120800.0,120790.0,4.18534032]
[1760036334310,0.35588,120800.0,120790.0,1.36758032]
[1760036334508,0.35588,120800.0,120790.0,4.18530032]
[1760036334810,0.35588,120800.0,120790.0,1.33216273]
[1760036335006,0.43862,120800.0,120790.0,3.31657583]
[1760036335208,0.43862,120800.0,120790.0,4.14988273]
[1760036335406,0.43862,120800.0,120790.0,2.08272273]
[1760036335704,0.43862,120800.0,120790.0,1.93430641]
[1760036335910,0.43862,120800.0,120790.0,1.9685831]
[1760036336208,0.43862,120800.0,120790.0,2.03354958]
[1760036336911,0.43862,120800.0,120790.0,1.99923289]
[1760036337308,0.43862,120800.0,120790.0,1.35258712]
[1760036337508,0.51294,120800.0,120790.0,1.72398761]
[1760036337711,0.51294,120800.0,120790.0,2.10322712]
[1760036338106,0.51294,120800.0,120790.0,2.13766724]
[1760036338805,0.51294,120800.0,120790.0,2.10322712]
[1760036341516,0.51294,120800.0,120790.0,1.35258712]
[1760036341715,0.51294,120800.0,120790.0,2.10298712]
[1760036342410,0.51294,120800.0,120790.0,2.36538712]
[1760036344719,0.51294,120800.0,120790.0,3.86538712]
[1760036345813,0.51294,120800.0,120790.0,2.65300071]
[1760036346019,0.51294,120800.0,120790.0,3.40320071]
[1760036346518,0.51294,120800.0,120790.0,3.14080071]
[1760036347313,0.51294,120800.0,120790.0,3.14076071]
[1760036348623,0.51294,120800.0,120790.0,3.03672648]
[1760036349122,0.51294,120800.0,120790.0,3.14076071]
[1760036349524,0.51294,120800.0,120790.0,2.39060071]
[1760036349722,0.51294,120800.0,120790.0,3.03664648]
[1760036350623,0.89217951,120800.0,120790.0,2.28656648]
[1760036350819,1.29217951,120800.0,120790.0,0.7216]
[1760036351024,1.29217951,120800.0,120790.0,1.57567423]
[1760036351624,1.29217951,120800.0,120790.0,0.82563423]
[1760036351929,1.29217951,120800.0,120790.0,1.47188]